[Event "*** Titled Tuesday Blitz"]
[Site "Chess.com"]
[Date "2020.10.27"]
[Round "1"]
[White "nrvisakh"]
[Black "BanjoKazooieN64"]
[Result "1-0"]
[WhiteElo "2666"]
[BlackElo "2322"]
[TimeControl "180+1"]
[EndTime "10:06:35 PDT"]
[Termination "nrvisakh won by resignation"]

1. e4 {[%clk 0:03:00.9]} 1... e5 {[%clk 0:02:58.4]} 2. Nf3 {[%clk 0:02:59.5]}
2... Nc6 {[%clk 0:02:57.9]} 3. Bb5 {[%clk 0:02:56.6]} 3... f5 {[%clk 0:02:57.4]}
4. d3 {[%clk 0:02:53.4]} 4... fxe4 {[%clk 0:02:57]} 5. dxe4 {[%clk 0:02:53.3]}
5... Nf6 {[%clk 0:02:57.4]} 6. O-O {[%clk 0:02:53.3]} 6... Bc5 {[%clk
0:02:57.3]} 7. Qe2 {[%clk 0:02:37.3]} 7... Nd4 {[%clk 0:02:41.3]} 8. Nxd4 {[%clk
0:02:36.1]} 8... Bxd4 {[%clk 0:02:41.5]} 9. c3 {[%clk 0:02:29.4]} 9... Bb6
{[%clk 0:02:40.6]} 10. a4 {[%clk 0:02:21.1]} 10... c6 {[%clk 0:02:26.9]} 11. Bc4
{[%clk 0:02:20.7]} 11... d6 {[%clk 0:02:19.6]} 12. Be3 {[%clk 0:02:13.8]} 12...
Bxe3 {[%clk 0:02:13]} 13. Qxe3 {[%clk 0:02:13.6]} 13... Qe7 {[%clk 0:02:12.7]}
14. Na3 {[%clk 0:02:05]} 14... Be6 {[%clk 0:02:12.3]} 15. Rad1 {[%clk
0:02:01.6]} 15... O-O {[%clk 0:02:09.4]} 16. Rd2 {[%clk 0:01:53.1]} 16... d5
{[%clk 0:01:30.9]} 17. exd5 {[%clk 0:01:49.3]} 17... cxd5 {[%clk 0:01:31.2]} 18.
Ba2 {[%clk 0:01:46]} 18... Ne4 {[%clk 0:01:01.3]} 19. Rxd5 {[%clk 0:01:40.3]}
19... Qh4 {[%clk 0:00:52.4]} 20. g3 {[%clk 0:01:00.8]} 20... Qh3 {[%clk
0:00:26.1]} 21. Qxe4 {[%clk 0:00:57.1]} 21... Rf4 {[%clk 0:00:20.9]} 22. gxf4
{[%clk 0:00:51.1]} 22... exf4 {[%clk 0:00:21.2]} 23. Re1 {[%clk 0:00:42.1]}
23... Re8 {[%clk 0:00:19.8]} 24. Re5 {[%clk 0:00:41.2]} 24... f3 {[%clk
0:00:19.8]} 25. Rg5 {[%clk 0:00:35.7]} 25... h6 {[%clk 0:00:11.2]} 26. Bxe6+
{[%clk 0:00:31.6]} 26... Rxe6 {[%clk 0:00:08.6]} 27. Qxe6+ {[%clk 0:00:31.4]}
1-0

[Event "*** Titled Tuesday Blitz"]
[Site "Chess.com"]
[Date "2020.10.27"]
[Round "1"]
[White "Ural_bogatyr"]
[Black "KaterynaLagno"]
[Result "0-1"]
[WhiteElo "2359"]
[BlackElo "2709"]
[TimeControl "180+1"]
[EndTime "10:06:36 PDT"]
[Termination "KaterynaLagno won on time"]

1. e4 {[%clk 0:02:58.6]} 1... e5 {[%clk 0:02:59.7]} 2. Nf3 {[%clk 0:02:58.6]}
2... Nc6 {[%clk 0:03:00.3]} 3. Bb5 {[%clk 0:02:57.5]} 3... g6 {[%clk 0:02:59.6]}
4. Nc3 {[%clk 0:02:56.5]} 4... Bg7 {[%clk 0:02:58.6]} 5. d4 {[%clk 0:02:56.8]}
5... Nxd4 {[%clk 0:02:55.8]} 6. Nxd4 {[%clk 0:02:35.6]} 6... exd4 {[%clk
0:02:56.7]} 7. Ne2 {[%clk 0:02:36.2]} 7... c6 {[%clk 0:02:56.5]} 8. Bc4 {[%clk
0:02:34]} 8... Qa5+ {[%clk 0:02:34.1]} 9. Bd2 {[%clk 0:02:20.7]} 9... Qc5 {[%clk
0:02:34.1]} 10. Bb3 {[%clk 0:02:12.1]} 10... Nf6 {[%clk 0:02:34.7]} 11. O-O
{[%clk 0:01:47.7]} 11... Nxe4 {[%clk 0:02:33.8]} 12. Ng3 {[%clk 0:01:41]} 12...
d5 {[%clk 0:02:22]} 13. Qe1 {[%clk 0:01:36.2]} 13... Qe7 {[%clk 0:02:14]} 14.
Bb4 {[%clk 0:01:21.9]} 14... c5 {[%clk 0:02:00]} 15. Bxd5 {[%clk 0:01:10.9]}
15... cxb4 {[%clk 0:01:59.8]} 16. Bxe4 {[%clk 0:00:55.8]} 16... O-O {[%clk
0:01:59.3]} 17. Qd2 {[%clk 0:00:50.4]} 17... Be6 {[%clk 0:01:58.1]} 18. Rfe1
{[%clk 0:00:49.4]} 18... Rfd8 {[%clk 0:01:47.8]} 19. Qf4 {[%clk 0:00:32.6]}
19... Rac8 {[%clk 0:01:42.1]} 20. Qf3 {[%clk 0:00:31.4]} 20... Rc7 {[%clk
0:01:34.5]} 21. a3 {[%clk 0:00:23.2]} 21... a6 {[%clk 0:01:30.9]} 22. a4 {[%clk
0:00:17.6]} 22... Qd7 {[%clk 0:01:18.3]} 23. h3 {[%clk 0:00:16.6]} 23... h5
{[%clk 0:01:05]} 24. b3 {[%clk 0:00:16.3]} 24... h4 {[%clk 0:00:59.9]} 25. Ne2
{[%clk 0:00:16.1]} 25... Bd5 {[%clk 0:00:59.5]} 26. Nf4 {[%clk 0:00:11.3]} 26...
Bxe4 {[%clk 0:00:56.4]} 27. Qxe4 {[%clk 0:00:12.2]} 27... Qc6 {[%clk 0:00:50.3]}
28. Rac1 {[%clk 0:00:02.7]} 28... Qxe4 {[%clk 0:00:49.1]} 29. Rxe4 {[%clk
0:00:03.6]} 29... d3 {[%clk 0:00:49.2]} 30. Rd1 {[%clk 0:00:02.2]} 30... d2
{[%clk 0:00:45.8]} 0-1

[Event "*** Titled Tuesday Blitz"]
[Site "Chess.com"]
[Date "2020.10.27"]
[Round "1"]
[White "m-garcett"]
[Black "WuinaterJr"]
[Result "0-1"]
[WhiteElo "2045"]
[BlackElo "2520"]
[TimeControl "180+1"]
[EndTime "10:06:36 PDT"]
[Termination "WuinaterJr won on time"]

1. e4 {[%clk 0:02:59.8]} 1... c5 {[%clk 0:02:59.2]} 2. Nf3 {[%clk 0:02:56.4]}
2... d6 {[%clk 0:02:58.9]} 3. d4 {[%clk 0:02:55.8]} 3... cxd4 {[%clk 0:02:59.3]}
4. Nxd4 {[%clk 0:02:56.7]} 4... Nf6 {[%clk 0:02:59.2]} 5. Nc3 {[%clk 0:02:57.2]}
5... a6 {[%clk 0:02:58.8]} 6. Nb3 {[%clk 0:02:57.1]} 6... e6 {[%clk 0:02:48.9]}
7. g4 {[%clk 0:02:55.5]} 7... Be7 {[%clk 0:02:47.7]} 8. Bg2 {[%clk 0:02:46.1]}
8... Nc6 {[%clk 0:02:43.5]} 9. h4 {[%clk 0:02:39.8]} 9... Qc7 {[%clk 0:02:40.1]}
10. Be3 {[%clk 0:02:38.4]} 10... b5 {[%clk 0:02:38.2]} 11. g5 {[%clk 0:02:32]}
11... Nd7 {[%clk 0:02:37.9]} 12. Qe2 {[%clk 0:02:32.5]} 12... Bb7 {[%clk
0:02:36.4]} 13. O-O-O {[%clk 0:02:31.6]} 13... Nb6 {[%clk 0:02:30.1]} 14. f4
{[%clk 0:02:18.4]} 14... Nc4 {[%clk 0:02:23.5]} 15. Bf2 {[%clk 0:01:58.2]} 15...
Rc8 {[%clk 0:02:22.8]} 16. f5 {[%clk 0:01:53.8]} 16... N6e5 {[%clk 0:02:19.1]}
17. Nd4 {[%clk 0:01:36.5]} 17... Nxb2 {[%clk 0:02:17.2]} 18. Ncxb5 {[%clk
0:01:27.7]} 18... Nbd3+ {[%clk 0:02:02.1]} 19. Rxd3 {[%clk 0:01:13.9]} 19...
Nxd3+ {[%clk 0:01:53.2]} 20. Qxd3 {[%clk 0:01:14.8]} 20... axb5 {[%clk
0:01:53.1]} 21. fxe6 {[%clk 0:01:08.5]} 21... O-O {[%clk 0:01:52]} 22. exf7+
{[%clk 0:01:08.3]} 22... Rxf7 {[%clk 0:01:52]} 23. Nf5 {[%clk 0:01:01.9]} 23...
Rxf5 {[%clk 0:01:46.8]} 24. exf5 {[%clk 0:00:57.7]} 24... Bxg2 {[%clk
0:01:46.7]} 25. Rg1 {[%clk 0:00:55.1]} 25... Bb7 {[%clk 0:01:42.5]} 26. f6
{[%clk 0:00:52.2]} 26... Bf8 {[%clk 0:01:42.6]} 27. Bd4 {[%clk 0:00:23.8]} 27...
Qc4 {[%clk 0:01:36.9]} 28. Qf5 {[%clk 0:00:16.8]} 28... Qxd4 {[%clk 0:01:25.9]}
29. Qe6+ {[%clk 0:00:08.1]} 29... Kh8 {[%clk 0:01:25.8]} 30. Rd1 {[%clk
0:00:06.7]} 30... Qf4+ {[%clk 0:01:20.1]} 31. Kb1 {[%clk 0:00:06.2]} 31... Qb4+
{[%clk 0:01:16.1]} 32. Kc1 {[%clk 0:00:05.1]} 32... Qc3 {[%clk 0:01:10]} 33. Qf5
{[%clk 0:00:03.5]} 33... g6 {[%clk 0:00:59.5]} 34. Qd3 {[%clk 0:00:02.8]} 34...
Qxd3 {[%clk 0:00:58.5]} 35. Rxd3 {[%clk 0:00:03.7]} 35... Be4 {[%clk 0:00:58.5]}
36. Rb3 {[%clk 0:00:01.3]} 36... Bxc2 {[%clk 0:00:56.8]} 0-1

[Event "*** Titled Tuesday Blitz"]
[Site "Chess.com"]
[Date "2020.10.27"]
[Round "1"]
[White "Sergey85Rodchenkov"]
[Black "Gabrielian_Artur"]
[Result "1-0"]
[WhiteElo "2440"]
[BlackElo "2803"]
[TimeControl "180+1"]
[EndTime "10:06:37 PDT"]
[Termination "Sergey85Rodchenkov won by resignation"]

1. e4 {[%clk 0:03:00.9]} 1... c5 {[%clk 0:02:59.3]} 2. Nf3 {[%clk 0:02:59.3]}
2... d6 {[%clk 0:02:59.2]} 3. d4 {[%clk 0:02:59.5]} 3... cxd4 {[%clk 0:02:59.4]}
4. Nxd4 {[%clk 0:03:00.1]} 4... Nf6 {[%clk 0:02:59.5]} 5. Nc3 {[%clk 0:03:00.7]}
5... Nc6 {[%clk 0:02:59.7]} 6. Bc4 {[%clk 0:03:00.5]} 6... Qb6 {[%clk
0:02:58.9]} 7. Ndb5 {[%clk 0:02:59.7]} 7... a6 {[%clk 0:02:56.2]} 8. Be3 {[%clk
0:02:59.7]} 8... Qd8 {[%clk 0:02:56.2]} 9. Nd4 {[%clk 0:02:59.8]} 9... e6 {[%clk
0:02:56.6]} 10. Bb3 {[%clk 0:02:59.8]} 10... Be7 {[%clk 0:02:56.5]} 11. O-O
{[%clk 0:02:59.5]} 11... O-O {[%clk 0:02:55.9]} 12. f4 {[%clk 0:02:59.4]} 12...
Bd7 {[%clk 0:02:55.9]} 13. f5 {[%clk 0:02:59.6]} 13... Nxd4 {[%clk 0:02:54.2]}
14. Qxd4 {[%clk 0:02:58.8]} 14... e5 {[%clk 0:02:45.3]} 15. Qd3 {[%clk
0:02:57.6]} 15... h6 {[%clk 0:02:39.9]} 16. Rad1 {[%clk 0:02:53.7]} 16... Bc6
{[%clk 0:02:37.9]} 17. Nd5 {[%clk 0:02:53.3]} 17... Bxd5 {[%clk 0:02:34.6]} 18.
Bxd5 {[%clk 0:02:52.5]} 18... Qc7 {[%clk 0:02:34.8]} 19. c3 {[%clk 0:02:38.9]}
19... Rab8 {[%clk 0:02:31.6]} 20. h3 {[%clk 0:02:35.3]} 20... b5 {[%clk
0:02:31]} 21. Rf2 {[%clk 0:02:28.8]} 21... Bd8 {[%clk 0:02:18.4]} 22. Kh2 {[%clk
0:02:25.3]} 22... Qe7 {[%clk 0:02:15.9]} 23. Rf3 {[%clk 0:02:14.1]} 23... Bb6
{[%clk 0:02:09.6]} 24. Bc1 {[%clk 0:02:12.6]} 24... Kh8 {[%clk 0:02:07.1]} 25.
Qe2 {[%clk 0:02:09.6]} 25... a5 {[%clk 0:02:03.3]} 26. Rfd3 {[%clk 0:02:09.2]}
26... Bc5 {[%clk 0:02:02]} 27. g4 {[%clk 0:02:03.8]} 27... Nh7 {[%clk 0:01:49]}
28. Kg3 {[%clk 0:02:00.1]} 28... b4 {[%clk 0:01:45.7]} 29. c4 {[%clk 0:01:51.8]}
29... a4 {[%clk 0:01:44.8]} 30. h4 {[%clk 0:01:50.9]} 30... f6 {[%clk
0:01:44.5]} 31. Kh3 {[%clk 0:01:45.5]} 31... Rfd8 {[%clk 0:01:23.2]} 32. Rg3
{[%clk 0:01:44.6]} 32... b3 {[%clk 0:00:59.6]} 33. a3 {[%clk 0:01:43.7]} 33...
Bd4 {[%clk 0:00:47.3]} 34. Rh1 {[%clk 0:01:39]} 34... Rdc8 {[%clk 0:00:31.5]}
35. g5 {[%clk 0:01:38.5]} 35... Qf8 {[%clk 0:00:13.8]} 36. Rh2 {[%clk
0:01:27.5]} 36... Rc5 {[%clk 0:00:13.6]} 37. gxh6 {[%clk 0:01:24.4]} 37... gxh6
{[%clk 0:00:13.2]} 38. Rhg2 {[%clk 0:01:16.9]} 38... Rxd5 {[%clk 0:00:13.4]} 39.
cxd5 {[%clk 0:01:16.5]} 39... Qf7 {[%clk 0:00:13.8]} 40. Bxh6 {[%clk 0:01:14.9]}
40... Rb7 {[%clk 0:00:11.6]} 41. Qg4 {[%clk 0:01:03.4]} 1-0

[Event "*** Titled Tuesday Blitz"]
[Site "Chess.com"]
[Date "2020.10.27"]
[Round "1"]
[White "Kazmin_Dmitrij"]
[Black "GjakanTati"]
[Result "0-1"]
[WhiteElo "2263"]
[BlackElo "2604"]
[TimeControl "180+1"]
[EndTime "10:06:37 PDT"]
[Termination "GjakanTati won by resignation"]

1. e4 {[%clk 0:03:00.5]} 1... e5 {[%clk 0:02:57.9]} 2. Nf3 {[%clk 0:03:00.1]}
2... Nc6 {[%clk 0:02:57.9]} 3. Bb5 {[%clk 0:02:59.8]} 3... Nf6 {[%clk
0:02:57.8]} 4. O-O {[%clk 0:02:56.3]} 4... Nxe4 {[%clk 0:02:57.5]} 5. d4 {[%clk
0:02:52.1]} 5... Nd6 {[%clk 0:02:57.8]} 6. Bxc6 {[%clk 0:02:50.4]} 6... dxc6
{[%clk 0:02:58.7]} 7. dxe5 {[%clk 0:02:49]} 7... Nf5 {[%clk 0:02:59.2]} 8. Qxd8+
{[%clk 0:02:47.7]} 8... Kxd8 {[%clk 0:03:00.1]} 9. Nc3 {[%clk 0:02:46.3]} 9...
Ke8 {[%clk 0:03:00]} 10. b3 {[%clk 0:02:31.1]} 10... Bb4 {[%clk 0:02:53.1]} 11.
Bb2 {[%clk 0:02:27.9]} 11... Bxc3 {[%clk 0:02:51.5]} 12. Bxc3 {[%clk 0:02:27.4]}
12... h6 {[%clk 0:02:45.8]} 13. Nd4 {[%clk 0:02:12.7]} 13... Ne7 {[%clk
0:02:35.9]} 14. f4 {[%clk 0:02:05.2]} 14... a6 {[%clk 0:01:54.8]} 15. Rae1
{[%clk 0:01:39.8]} 15... c5 {[%clk 0:01:53.4]} 16. Ne2 {[%clk 0:01:31.9]} 16...
Be6 {[%clk 0:01:52.2]} 17. Ng3 {[%clk 0:01:25.3]} 17... g6 {[%clk 0:01:43.4]}
18. Bb2 {[%clk 0:01:09.4]} 18... Kd7 {[%clk 0:01:42.7]} 19. c4 {[%clk
0:01:08.3]} 19... Kc6 {[%clk 0:01:42.2]} 20. Ne4 {[%clk 0:00:49.5]} 20... a5
{[%clk 0:01:41.3]} 21. a4 {[%clk 0:00:30]} 21... Rhd8 {[%clk 0:01:36.7]} 22. Rd1
{[%clk 0:00:28.9]} 22... Bf5 {[%clk 0:01:29.3]} 23. Nf6 {[%clk 0:00:26.2]} 23...
Bc2 {[%clk 0:01:23]} 24. Rxd8 {[%clk 0:00:25.3]} 24... Rxd8 {[%clk 0:01:23.9]}
25. Rf3 {[%clk 0:00:24.8]} 25... Rd2 {[%clk 0:01:17.5]} 26. Bc3 {[%clk
0:00:21.9]} 26... Re2 {[%clk 0:01:17.3]} 27. Bxa5 {[%clk 0:00:20.8]} 27... Nf5
{[%clk 0:01:17]} 28. g4 {[%clk 0:00:19.8]} 28... Nd4 {[%clk 0:01:13.1]} 29. Rf2
{[%clk 0:00:17.4]} 29... Re3 {[%clk 0:01:10.3]} 30. Nd5 {[%clk 0:00:15.7]} 30...
Rxb3 {[%clk 0:01:08.3]} 31. Bxc7 {[%clk 0:00:14.8]} 31... Rb1+ {[%clk
0:01:07.2]} 32. Kg2 {[%clk 0:00:14.9]} 32... Be4+ {[%clk 0:01:07.3]} 33. Kh3
{[%clk 0:00:15]} 33... Rb3+ {[%clk 0:01:06.4]} 34. Kh4 {[%clk 0:00:15.3]} 34...
Nf3+ {[%clk 0:01:02]} 35. Rxf3 {[%clk 0:00:15.4]} 35... Bxf3 {[%clk 0:01:02.2]}
36. Bd8 {[%clk 0:00:12.5]} 36... Bg2 {[%clk 0:01:02]} 37. g5 {[%clk 0:00:11.7]}
37... h5 {[%clk 0:01:01.9]} 38. Ne3 {[%clk 0:00:06.7]} 38... Rxe3 {[%clk
0:01:01.1]} 0-1

[Event "*** Titled Tuesday Blitz"]
[Site "Chess.com"]
[Date "2020.10.27"]
[Round "1"]
[White "bsnsun"]
[Black "Anton_Demchenko"]
[Result "0-1"]
[WhiteElo "2441"]
[BlackElo "2850"]
[TimeControl "180+1"]
[EndTime "10:06:41 PDT"]
[Termination "Anton_Demchenko won on time"]

1. d4 {[%clk 0:02:57.9]} 1... Nf6 {[%clk 0:02:58.5]} 2. c4 {[%clk 0:02:56.6]}
2... g6 {[%clk 0:02:58.1]} 3. Nf3 {[%clk 0:02:55.4]} 3... Bg7 {[%clk 0:02:58.4]}
4. Nc3 {[%clk 0:02:55.2]} 4... O-O {[%clk 0:02:59.1]} 5. e4 {[%clk 0:02:55.3]}
5... d6 {[%clk 0:02:59.7]} 6. Be2 {[%clk 0:02:55.6]} 6... Nbd7 {[%clk
0:02:59.4]} 7. O-O {[%clk 0:02:54.9]} 7... e5 {[%clk 0:03:00]} 8. h3 {[%clk
0:02:49.8]} 8... exd4 {[%clk 0:02:59.1]} 9. Nxd4 {[%clk 0:02:49.9]} 9... Re8
{[%clk 0:03:00]} 10. f3 {[%clk 0:02:36.6]} 10... c6 {[%clk 0:02:59.2]} 11. Bf4
{[%clk 0:02:35.6]} 11... Nh5 {[%clk 0:02:27.6]} 12. Be3 {[%clk 0:02:17.2]} 12...
f5 {[%clk 0:02:23.9]} 13. Bf2 {[%clk 0:01:52.3]} 13... f4 {[%clk 0:02:21]} 14.
Qd2 {[%clk 0:01:50.8]} 14... Ne5 {[%clk 0:02:17.4]} 15. Rad1 {[%clk 0:01:48.6]}
15... Qf6 {[%clk 0:01:31.2]} 16. Nc2 {[%clk 0:01:44.9]} 16... Bf8 {[%clk
0:01:31.1]} 17. b4 {[%clk 0:01:33.1]} 17... Be6 {[%clk 0:01:30.7]} 18. Na3
{[%clk 0:01:16.7]} 18... a6 {[%clk 0:01:21.5]} 19. Qc2 {[%clk 0:01:11.2]} 19...
b5 {[%clk 0:01:17.9]} 20. cxb5 {[%clk 0:01:05.7]} 20... axb5 {[%clk 0:01:17.4]}
21. Nab1 {[%clk 0:01:05.9]} 21... Qg5 {[%clk 0:01:16.3]} 22. Kh2 {[%clk
0:01:02.9]} 22... Ng3 {[%clk 0:01:15.3]} 23. Rfe1 {[%clk 0:00:57.5]} 23... Qh4
{[%clk 0:01:15.2]} 24. Nd2 {[%clk 0:00:41.3]} 24... Ra3 {[%clk 0:01:08.9]} 25.
Nb3 {[%clk 0:00:39.4]} 25... Qf6 {[%clk 0:01:01.4]} 26. Nd4 {[%clk 0:00:38.3]}
26... Bf7 {[%clk 0:00:56.5]} 27. Bf1 {[%clk 0:00:17.6]} 27... Rea8 {[%clk
0:00:55.8]} 28. Ra1 {[%clk 0:00:17.6]} 28... h5 {[%clk 0:00:53.1]} 29. Nce2
{[%clk 0:00:16]} 29... Nd3 {[%clk 0:00:41.3]} 30. Nxg3 {[%clk 0:00:02]} 30...
fxg3+ {[%clk 0:00:41.4]} 0-1

[Event "*** Titled Tuesday Blitz"]
[Site "Chess.com"]
[Date "2020.10.27"]
[Round "1"]
[White "JoliyRoger"]
[Black "baki83"]
[Result "0-1"]
[WhiteElo "2413"]
[BlackElo "2803"]
[TimeControl "180+1"]
[EndTime "10:06:42 PDT"]
[Termination "baki83 won on time"]

1. Nf3 {[%clk 0:03:00]} 1... d5 {[%clk 0:02:58.9]} 2. d4 {[%clk 0:02:59.7]} 2...
Nf6 {[%clk 0:02:58.1]} 3. c4 {[%clk 0:03:00.3]} 3... e6 {[%clk 0:02:58.3]} 4.
cxd5 {[%clk 0:03:00.4]} 4... exd5 {[%clk 0:02:59.2]} 5. Nc3 {[%clk 0:03:00.9]}
5... Be7 {[%clk 0:02:58.3]} 6. Bg5 {[%clk 0:03:01.4]} 6... O-O {[%clk
0:02:57.3]} 7. Bxf6 {[%clk 0:02:58.7]} 7... Bxf6 {[%clk 0:02:57.1]} 8. e3 {[%clk
0:02:59.6]} 8... c6 {[%clk 0:02:53]} 9. Bd3 {[%clk 0:03:00]} 9... Re8 {[%clk
0:02:50.1]} 10. Qc2 {[%clk 0:03:00.6]} 10... g6 {[%clk 0:02:47.1]} 11. h3 {[%clk
0:03:00.9]} 11... Nd7 {[%clk 0:02:45.3]} 12. O-O {[%clk 0:03:01.3]} 12... Bg7
{[%clk 0:02:39.8]} 13. b4 {[%clk 0:02:48.4]} 13... a6 {[%clk 0:02:38.9]} 14. a4
{[%clk 0:02:48.2]} 14... Nb6 {[%clk 0:02:31.3]} 15. b5 {[%clk 0:02:47.5]} 15...
cxb5 {[%clk 0:02:30.7]} 16. axb5 {[%clk 0:02:47.5]} 16... a5 {[%clk 0:02:31.2]}
17. Nd2 {[%clk 0:02:02]} 17... Qg5 {[%clk 0:02:13]} 18. Nf3 {[%clk 0:01:59.1]}
18... Qe7 {[%clk 0:02:08.6]} 19. Na4 {[%clk 0:01:52.6]} 19... Nxa4 {[%clk
0:02:03.8]} 20. Qxa4 {[%clk 0:01:53.1]} 20... Be6 {[%clk 0:01:56]} 21. Rac1
{[%clk 0:01:51.9]} 21... Qb4 {[%clk 0:01:49.3]} 22. Qa2 {[%clk 0:01:40.6]} 22...
a4 {[%clk 0:01:46.5]} 23. Rb1 {[%clk 0:01:17.8]} 23... Qd6 {[%clk 0:01:42.5]}
24. Bc2 {[%clk 0:01:12.2]} 24... Rec8 {[%clk 0:01:37.8]} 25. Rfc1 {[%clk
0:00:52.1]} 25... Bf8 {[%clk 0:01:23.6]} 26. Ra1 {[%clk 0:00:20.4]} 26... a3
{[%clk 0:00:59.2]} 27. Ne5 {[%clk 0:00:19.1]} 27... Rc3 {[%clk 0:00:55.9]} 28.
Bd3 {[%clk 0:00:13.1]} 28... Rac8 {[%clk 0:00:53.8]} 29. Rd1 {[%clk 0:00:04.9]}
29... f6 {[%clk 0:00:45.2]} 30. Nf3 {[%clk 0:00:04.1]} 30... Qb4 {[%clk
0:00:44.3]} 31. Rab1 {[%clk 0:00:04.5]} 31... Qa4 {[%clk 0:00:43.5]} 32. b6
{[%clk 0:00:01.3]} 32... Bf7 {[%clk 0:00:42.5]} 0-1

[Event "*** Titled Tuesday Blitz"]
[Site "Chess.com"]
[Date "2020.10.27"]
[Round "1"]
[White "YoungUzbek"]
[Black "JozefKneht"]
[Result "1-0"]
[WhiteElo "2748"]
[BlackElo "2387"]
[TimeControl "180+1"]
[EndTime "10:06:42 PDT"]
[Termination "YoungUzbek won by resignation"]

1. d4 {[%clk 0:02:58.1]} 1... d5 {[%clk 0:02:58.8]} 2. Bg5 {[%clk 0:02:57.4]}
2... h6 {[%clk 0:02:58]} 3. Bh4 {[%clk 0:02:56.5]} 3... c6 {[%clk 0:02:58.9]} 4.
c3 {[%clk 0:02:53.9]} 4... Qb6 {[%clk 0:02:59.1]} 5. Qc1 {[%clk 0:02:53.9]} 5...
Bf5 {[%clk 0:02:58.1]} 6. e3 {[%clk 0:02:53.3]} 6... Nd7 {[%clk 0:02:58.4]} 7.
Nf3 {[%clk 0:02:53.2]} 7... Ngf6 {[%clk 0:02:58.4]} 8. Be2 {[%clk 0:02:53.4]}
8... e6 {[%clk 0:02:58.6]} 9. O-O {[%clk 0:02:54]} 9... Be7 {[%clk 0:02:56.1]}
10. a4 {[%clk 0:02:53.8]} 10... O-O {[%clk 0:02:48.6]} 11. a5 {[%clk 0:02:53.4]}
11... Qd8 {[%clk 0:02:48.7]} 12. a6 {[%clk 0:02:53.3]} 12... b5 {[%clk
0:02:42.8]} 13. Nbd2 {[%clk 0:02:52.4]} 13... Ne4 {[%clk 0:02:40]} 14. Bxe7
{[%clk 0:02:51.6]} 14... Qxe7 {[%clk 0:02:40]} 15. Nxe4 {[%clk 0:02:52.1]} 15...
Bxe4 {[%clk 0:02:39.4]} 16. Nd2 {[%clk 0:02:52.4]} 16... Bg6 {[%clk 0:02:38.7]}
17. b3 {[%clk 0:02:52.5]} 17... Rab8 {[%clk 0:02:35.8]} 18. b4 {[%clk
0:02:49.1]} 18... e5 {[%clk 0:02:31.4]} 19. Nb3 {[%clk 0:02:47.8]} 19... Kh7
{[%clk 0:02:13.5]} 20. Qd2 {[%clk 0:02:46.8]} 20... f6 {[%clk 0:02:07.6]} 21. f4
{[%clk 0:02:46.5]} 21... Rfe8 {[%clk 0:02:04.7]} 22. fxe5 {[%clk 0:02:43.1]}
22... fxe5 {[%clk 0:02:03.7]} 23. Rae1 {[%clk 0:02:37.1]} 23... Rf8 {[%clk
0:02:03]} 24. Bg4 {[%clk 0:02:35.5]} 24... Nf6 {[%clk 0:01:58.2]} 25. Bf3 {[%clk
0:02:33.4]} 25... Be4 {[%clk 0:01:57.8]} 26. Nc5 {[%clk 0:02:27.9]} 26... Bxf3
{[%clk 0:01:57]} 27. Rxf3 {[%clk 0:02:28.8]} 27... e4 {[%clk 0:01:54.7]} 28. Rf4
{[%clk 0:02:23.5]} 28... Nh5 {[%clk 0:01:50.4]} 29. Rxf8 {[%clk 0:02:23.6]}
29... Rxf8 {[%clk 0:01:49.9]} 30. Qe2 {[%clk 0:02:24.5]} 30... Nf6 {[%clk
0:01:46.9]} 31. Rf1 {[%clk 0:02:24.8]} 31... Nd7 {[%clk 0:01:43.6]} 32. Rxf8
{[%clk 0:02:20]} 32... Nxf8 {[%clk 0:01:44.5]} 33. Qf2 {[%clk 0:02:20.5]} 33...
g6 {[%clk 0:01:40.3]} 34. Qf4 {[%clk 0:02:18.9]} 34... Kg7 {[%clk 0:01:40.2]}
35. h4 {[%clk 0:02:07.3]} 35... g5 {[%clk 0:01:35.6]} 36. Qb8 {[%clk 0:02:04.7]}
36... gxh4 {[%clk 0:01:34.6]} 37. Nb7 {[%clk 0:01:56.2]} 37... Qg5 {[%clk
0:01:30.6]} 38. Kf2 {[%clk 0:01:56.3]} 38... Qf6+ {[%clk 0:01:26]} 39. Qf4
{[%clk 0:01:47.5]} 39... Qxf4+ {[%clk 0:01:22.2]} 40. exf4 {[%clk 0:01:48.4]}
40... Ne6 {[%clk 0:01:22.2]} 41. Ke3 {[%clk 0:01:48.7]} 41... Nc7 {[%clk
0:01:21.6]} 42. Nd8 {[%clk 0:01:48.3]} 42... Nxa6 {[%clk 0:01:21]} 43. Nxc6
{[%clk 0:01:48.9]} 43... Nc7 {[%clk 0:01:20.2]} 44. Nxa7 {[%clk 0:01:49.2]}
44... Kg6 {[%clk 0:01:20.4]} 45. Nc6 {[%clk 0:01:49]} 45... Kh5 {[%clk
0:01:18.5]} 46. Ne5 {[%clk 0:01:48.6]} 46... h3 {[%clk 0:01:18.7]} 47. gxh3
{[%clk 0:01:46.1]} 47... Kh4 {[%clk 0:01:18.8]} 48. Ng4 {[%clk 0:01:33.1]} 48...
Ne8 {[%clk 0:01:07]} 49. f5 {[%clk 0:01:22.5]} 49... h5 {[%clk 0:01:03.9]} 50.
f6 {[%clk 0:01:22.6]} 50... Nd6 {[%clk 0:01:03.5]} 51. Ne5 {[%clk 0:01:12]}
51... Kxh3 {[%clk 0:01:02.1]} 52. f7 {[%clk 0:01:12.3]} 52... Nxf7 {[%clk
0:01:02.3]} 53. Nxf7 {[%clk 0:01:13.2]} 53... Kg2 {[%clk 0:01:00.3]} 54. Ng5
{[%clk 0:01:12.7]} 54... h4 {[%clk 0:01:00.4]} 55. c4 {[%clk 0:01:12.6]} 55...
dxc4 {[%clk 0:00:58.1]} 56. d5 {[%clk 0:01:12.4]} 56... c3 {[%clk 0:00:58.2]}
57. d6 {[%clk 0:01:11.7]} 57... h3 {[%clk 0:00:57.5]} 58. Nxh3 {[%clk
0:01:02.3]} 58... Kxh3 {[%clk 0:00:58.4]} 59. d7 {[%clk 0:01:02.2]} 59... c2
{[%clk 0:00:51]} 60. Kd2 {[%clk 0:01:02.2]} 60... e3+ {[%clk 0:00:49.5]} 61.
Kxc2 {[%clk 0:01:02.6]} 1-0